[Event "13th SRB-ch Men 2019"]
[Site "Beograd"]
[Date "2019.04.12"]
[Round "7.2"]
[White "Damljanovic, Branko"]
[Black "Savic, Miodrag R"]
[Result "0-1"]
[ECO "E20"]
[WhiteElo "2486"]
[BlackElo "2498"]
[Annotator "ChessBase"]
[PlyCount "122"]
[EventDate "2019.04.06"]
[EventType "tourn"]
[EventCountry "SRB"]
[SourceTitle "playchess.com"]
[Source "ChessBase"]
[SourceQuality "1"]
[TimeControl "40/5400+30:1800+30"]

1. Nf3 {[%emt 0:00:00]} Nf6 {[%emt 0:00:23]} 2. c4 {[%emt 0:00:00]} e6 {[%emt 0:00:13]} 3. Nc3 {[%emt 0:00:00]} Bb4 {[%emt 0:03:14]} 4. g3 {[%emt 0:00:00]} O-O {[%emt 0:01:28]} 5. Bg2 {[%emt 0:00:00]} d5 {[%emt 0:00:07]} 6. d4 {[%emt 0:00:02]} dxc4 {[%emt 0:06:57]} 7. O-O {[%emt 0:00:53]} Nc6 {[%emt 0:00:48]} 8. Qa4 {[%emt 0:00:07]} Bd7 {[%emt 0:11:16]} 9. Qc2 {[%emt 0:00:16]} Be7 {[%emt 0:00:36]} 10. Rd1 {[%emt 0:02:28]} Nb4 {[%emt 0:02:19]} 11. Qb1 {[%emt 0:03:55]} Bc6 {[%emt 0:01:43]} 12. e4 {[%emt 0:32:53]} Nd3 {[%emt 0:04:01]} 13. Rxd3 {[%emt 0:00:06]} cxd3 {[%emt 0:00:10]} 14. Qxd3 {[%emt 0:00:04]} a6 {[%emt 0:06:36]} 15. Bf4 {[%emt 0:14:13]} b5 {[%emt 0:03:33]} 16. Rd1 {[%emt 0:02:40]} Bb7 {[%emt 0:07:22]} 17. Ng5 {[%emt 0:17:49]} h6 {[%emt 0:05:15]} 18. Nh3 {[%emt 0:02:10]} b4 {[%emt 0:11:06]} 19. Na4 {[%emt 0:02:07]} Qd7 {[%emt 0:03:17]} 20. b3 {[%emt 0:01:45]} Qb5 {[%emt 0:03:07]} 21. Qc2 {[%emt 0:04:06]} Qc6 {[%emt 0:04:33]} 22. Qb1 {[%emt 0:04:19]} Rac8 {[%emt 0:01:42]} 23. f3 {[%emt 0:02:48]} Rfd8 {[%emt 0:01:56]} 24. Nf2 {[%emt 0:00:32]} Qe8 {[%emt 0:00:53]} 25. Be3 {[%emt 0:01:19]} Bc6 {[%emt 0:00:52]} 26. Nb2 {[%emt 0:00:55]} Bb5 {[%emt 0:00:02]} 27. Rc1 {[%emt 0:01:14]} Rd7 {[%emt 0:03:41]} 28. Nbd3 {[%emt 0:03:22]} Qd8 {[%emt 0:01:22]} 29. Qb2 {[%emt 0:03:22]} Bxd3 {[%emt 0:00:27]} 30. Nxd3 {[%emt 0:00:01]} c5 {[%emt 0:00:21]} 31. Nxc5 {[%emt 0:01:27]} Bxc5 {[%emt 0:00:10]} 32. dxc5 {[%emt 0:00:01]} Rd1+ {[%emt 0:00:28]} 33. Bf1 {[%emt 0:00:14]} a5 {[%emt 0:04:14]} 34. Kf2 {[%emt 0:00:26]} Rxc1 {[%emt 0:00:11]} 35. Qxc1 {[%emt 0:00:03]} Nd7 {[%emt 0:00:24]} 36. Ba6 {[%emt 0:01:46]} Rc7 {[%emt 0:01:20]} 37. Qd2 {[%emt 0:00:33]} Qe7 {[%emt 0:01:17]} 38. Qd6 {[%emt 0:00:26]} Qxd6 {[%emt 0:00:53]} 39. cxd6 {[%emt 0:00:01]} Rc6 {[%emt 0:01:20]} 40. Bb5 {[%emt 0:00:00]} Rxd6 {[%emt 0:00:00]} 41. Ke2 {[%emt 0:00:06]} e5 {[%emt 0:02:03]} 42. f4 {[%emt 0:03:30]} h5 {[%emt 0:08:00]} 43. h3 {[%emt 0:06:45]} g6 {[%emt 0:01:26]} 44. g4 {[%emt 0:02:00]} hxg4 {[%emt 0:00:56]} 45. hxg4 {[%emt 0:00:02]} Kg7 {[%emt 0:01:12]} 46. g5 {[%emt 0:02:49]} f6 {[%emt 0:01:31]} 47. fxe5 {[%emt 0:18:04]} fxe5 {[%emt 0:05:00]} 48. Bf2 {[%emt 0:00:54]} Kf7 {[%emt 0:00:31]} 49. Be3 {[%emt 0:01:12]} Ke7 {[%emt 0:01:08]} 50. Bf2 {[%emt 0:00:18]} Kd8 {[%emt 0:04:10]} 51. Be3 {[%emt 0:00:06]} Kc7 {[%emt 0:00:19]} 52. Bf2 {[%emt 0:00:03]} Re6 {[%emt 0:03:31]} 53. Kd3 {[%emt 0:00:56]} Rd6+ {[%emt 0:02:07]} 54. Ke2 {[%emt 0:00:08]} Nf8 {[%emt 0:03:35]} 55. Bc5 {[%emt 0:00:27]} Ne6 {[%emt 0:00:14]} 56. Bxd6+ {[%emt 0:00:53]} Kxd6 {[%emt 0:00:01]} 57. Kd3 {[%emt 0:01:17]} Nxg5 {[%emt 0:00:31]} 58. Be8 {[%emt 0:00:05]} Nh3 {[%emt 0:00:25]} 59. Ke3 {[%emt 0:00:48]} Nf4 {[%emt 0:00:16]} 60. Bf7 {[%emt 0:00:04]} Kc5 {[%emt 0:01:25]} 61. Be8 {[%emt 0:00:40]} g5 {[%emt 0:00:25]} 0-1

[Event "13th SRB-ch Men 2019"]
[Site "Beograd"]
[Date "2019.04.12"]
[Round "7.3"]
[White "Cabarkapa, Novak"]
[Black "Markovic, Miroslav"]
[Result "1/2-1/2"]
[ECO "A01"]
[WhiteElo "2454"]
[BlackElo "2384"]
[Annotator "ChessBase"]
[PlyCount "25"]
[EventDate "2019.04.06"]
[EventType "tourn"]
[EventCountry "SRB"]
[SourceTitle "playchess.com"]
[Source "ChessBase"]
[SourceQuality "1"]
[TimeControl "40/5400+30:1800+30"]

1. b3 {[%emt 0:00:00]} a5 {[%emt 0:00:00]} 2. c4 {[%emt 0:00:06]} a4 {[%emt 0:00:00]} 3. bxa4 {[%emt 0:01:15]} e5 {[%emt 0:00:17]} 4. Nc3 {[%emt 0:03:03]} Nc6 {[%emt 0:01:08]} 5. g3 {[%emt 0:01:11]} Nf6 {[%emt 0:00:17]} 6. Bg2 {[%emt 0:01:21]} Bc5 {[%emt 0:00:27]} 7. d3 {[%emt 0:04:59]} O-O {[%emt 0:00:59]} 8. Nf3 {[%emt 0:00:58]} h6 {[%emt 0:00:19]} 9. O-O {[%emt 0:00:37]} d6 {[%emt 0:00:14]} 10. Rb1 {[%emt 0:04:31]} Bb6 {[%emt 0:02:01]} 11. Nd5 {[%emt 0:01:18]} Nxd5 {[%emt 0:00:24]} 12. cxd5 {[%emt 0:00:07]} Nd4 {[%emt 0:00:35]} 13. Nxd4 {[%emt 0:04:53]} 1/2-1/2

[Event "13th SRB-ch Men 2019"]
[Site "Beograd"]
[Date "2019.04.12"]
[Round "7.4"]
[White "Kovacevic, Aleksandar"]
[Black "Milanovic, Danilo"]
[Result "1/2-1/2"]
[ECO "B01"]
[WhiteElo "2503"]
[BlackElo "2495"]
[Annotator "ChessBase"]
[PlyCount "92"]
[EventDate "2019.04.06"]
[EventType "tourn"]
[EventCountry "SRB"]
[SourceTitle "playchess.com"]
[Source "ChessBase"]
[SourceQuality "1"]
[TimeControl "40/5400+30:1800+30"]

1. e4 {[%emt 0:00:00]} d5 {[%emt 0:00:06]} 2. exd5 {[%emt 0:00:00]} Qxd5 {[%emt 0:00:07]} 3. Nc3 {[%emt 0:00:00]} Qd6 {[%emt 0:00:07]} 4. d4 {[%emt 0:00:16]} Nf6 {[%emt 0:00:07]} 5. Nf3 {[%emt 0:00:27]} c6 {[%emt 0:00:19]} 6. Ne5 {[%emt 0:00:34]} Be6 {[%emt 0:00:07]} 7. Bf4 {[%emt 0:00:47]} Qd8 {[%emt 0:00:34]} 8. h4 {[%emt 0:01:02]} g6 {[%emt 0:01:45]} 9. h5 {[%emt 0:00:41]} gxh5 {[%emt 0:03:15]} 10. Bc4 {[%emt 0:01:17]} Bxc4 {[%emt 0:09:14]} 11. Nxc4 {[%emt 0:00:06]} Bg7 {[%emt 0:01:03]} 12. Qe2 {[%emt 0:04:06]} O-O {[%emt 0:19:50]} 13. O-O-O {[%emt 0:23:09]} Re8 {[%emt 0:11:46]} 14. Rxh5 {[%emt 0:00:30]} Nxh5 {[%emt 0:00:30]} 15. Qxh5 {[%emt 0:00:30]} Nd7 {[%emt 0:32:10]} 16. Ne4 {[%emt 0:23:16]} Nf8 {[%emt 0:04:59]} 17. Ne3 f6 18. Bh6 {[%emt 0:00:00]} Bxh6 {[%emt 0:00:00]} 19. Qxh6 {[%emt 0:00:00]} Qc8 {[%emt 0:02:01]} 20. Rh1 {[%emt 0:17:03]} Qe6 {[%emt 0:01:02]} 21. Rh4 {[%emt 0:02:11]} f5 {[%emt 0:06:27]} 22. Qg5+ {[%emt 0:07:31]} Qg6 {[%emt 0:00:30]} 23. Nxf5 {[%emt 0:00:43]} Qxg5+ {[%emt 0:00:43]} 24. Nxg5 {[%emt 0:00:02]} e6 {[%emt 0:00:47]} 25. Nd6 {[%emt 0:08:17]} Re7 {[%emt 0:00:05]} 26. Nge4 {[%emt 0:00:30]} Ng6 {[%emt 0:04:51]} 27. Rg4 {[%emt 0:00:05]} Rf8 {[%emt 0:00:17]} 28. g3 {[%emt 0:00:30]} Rg7 {[%emt 0:00:36]} 29. Rg5 {[%emt 0:01:49]} b6 {[%emt 0:00:21]} 30. c3 {[%emt 0:02:46]} Ne7 {[%emt 0:00:47]} 31. Re5 {[%emt 0:00:34]} Rg6 {[%emt 0:00:31]} 32. Kd2 {[%emt 0:07:18]} h6 {[%emt 0:00:16]} 33. Ke2 {[%emt 0:00:00]} Nf5 {[%emt 0:00:29]} 34. Nc4 {[%emt 0:00:00]} Kf7 {[%emt 0:00:30]} 35. a4 {[%emt 0:00:00]} Ke7 {[%emt 0:00:14]} 36. a5 {[%emt 0:00:00]} b5 {[%emt 0:00:47]} 37. Ncd2 {[%emt 0:00:00]} Nd6 {[%emt 0:00:19]} 38. Nxd6 {[%emt 0:00:21]} Kxd6 {[%emt 0:00:04]} 39. Ne4+ {[%emt 0:00:17]} Ke7 {[%emt 0:00:45]} 40. Nc5 {[%emt 0:00:00]} Rf5 {[%emt 0:00:00]} 41. Nd3 {[%emt 0:06:48]} Kd6 {[%emt 0:13:23]} 42. Re4 {[%emt 0:02:32]} h5 {[%emt 0:01:24]} 43. Nf4 {[%emt 0:03:42]} Rh6 {[%emt 0:00:53]} 44. Nd3 {[%emt 0:00:13]} Rg6 {[%emt 0:06:45]} 45. Nf4 {[%emt 0:00:28]} Rgf6 {[%emt 0:00:34]} 46. Nd3 {[%emt 0:02:07]} Rg6 {[%emt 0:02:47]} 1/2-1/2

[Event "13th SRB-ch Men 2019"]
[Site "Beograd"]
[Date "2019.04.12"]
[Round "7.5"]
[White "Nestorovic, Nikola"]
[Black "Ivic, Velimir"]
[Result "1/2-1/2"]
[ECO "B07"]
[WhiteElo "2473"]
[BlackElo "2516"]
[Annotator "ChessBase"]
[PlyCount "66"]
[EventDate "2019.04.06"]
[EventType "tourn"]
[EventCountry "SRB"]
[SourceTitle "playchess.com"]
[Source "ChessBase"]
[SourceQuality "1"]
[TimeControl "40/5400+30:1800+30"]

1. d4 {[%emt 0:00:00]} Nf6 {[%emt 0:00:00]} 2. Nf3 {[%emt 0:00:00]} g6 {[%emt 0:00:00]} 3. Nbd2 {[%emt 0:00:00]} Bg7 {[%emt 0:00:00]} 4. e4 {[%emt 0:00:00]} d6 {[%emt 0:00:00]} 5. Bb5+ {[%emt 0:00:00]} Nc6 {[%emt 0:03:45]} 6. O-O {[%emt 0:05:18]} O-O {[%emt 0:01:43]} 7. Re1 {[%emt 0:03:41]} Bd7 {[%emt 0:00:51]} 8. c3 {[%emt 0:02:09]} e5 {[%emt 0:01:38]} 9. Bf1 {[%emt 0:09:34]} a5 {[%emt 1:26:33]} 10. dxe5 Nxe5 {[%emt 0:00:00]} 11. Nxe5 dxe5 {[%emt 0:00:00]} 12. Nc4 {[%emt 0:06:26]} Qe7 {[%emt 0:00:00]} 13. a4 {[%emt 0:00:10]} Bc6 {[%emt 0:00:00]} 14. Qc2 {[%emt 0:00:12]} Rfd8 {[%emt 0:00:00]} 15. b3 {[%emt 0:11:21]} b6 {[%emt 0:00:00]} 16. g3 {[%emt 0:03:00]} Qe6 {[%emt 0:00:00]} 17. Bg2 {[%emt 0:10:37]} Rd7 {[%emt 0:00:00]} 18. Ne3 {[%emt 0:01:04]} Rad8 {[%emt 0:00:00]} 19. c4 {[%emt 0:00:27]} Ba8 {[%emt 0:00:00]} 20. Nd5 {[%emt 0:00:27]} Rb8 {[%emt 0:00:00]} 21. Bg5 {[%emt 0:12:06]} Ne8 {[%emt 0:00:00]} 22. Be3 {[%emt 0:00:04]} c5 {[%emt 0:00:00]} 23. Rad1 {[%emt 0:05:08]} Bxd5 {[%emt 0:00:00]} 24. exd5 {[%emt 0:04:28]} Qd6 {[%emt 0:00:00]} 25. f4 {[%emt 0:03:23]} Re7 {[%emt 0:00:00]} 26. f5 {[%emt 0:01:01]} gxf5 {[%emt 0:00:00]} 27. Qxf5 {[%emt 0:00:08]} Qg6 {[%emt 0:00:00]} 28. Qxg6 {[%emt 0:19:04]} hxg6 {[%emt 0:00:00]} 29. d6 {[%emt 0:00:01]} Rd7 {[%emt 0:00:00]} 30. Bc6 {[%emt 0:00:01]} Rxd6 {[%emt 0:00:49]} 31. Bxe8 {[%emt 0:00:05]} Rxd1 {[%emt 0:00:04]} 32. Bxf7+ {[%emt 0:00:22]} Kxf7 {[%emt 0:00:04]} 33. Rxd1 {[%emt 0:00:03]} Ke6 {[%emt 0:00:16]} 1/2-1/2

[Event "13th SRB-ch Men 2019"]
[Site "Beograd"]
[Date "2019.04.13"]
[Round "8.2"]
[White "Milanovic, Danilo"]
[Black "Nestorovic, Nikola"]
[Result "1/2-1/2"]
[ECO "D03"]
[WhiteElo "2495"]
[BlackElo "2473"]
[Annotator "ChessBase"]
[PlyCount "49"]
[EventDate "2019.04.06"]
[EventType "tourn"]
[EventCountry "SRB"]
[SourceTitle "playchess.com"]
[Source "ChessBase"]
[SourceQuality "1"]
[TimeControl "40/5400+30:1800+30"]

1. d4 {[%emt 0:00:00]} Nf6 {[%emt 0:00:00]} 2. Bg5 {[%emt 0:00:00]} d5 {[%emt 1:31:00]} 3. Nd2 {[%emt 0:00:00]} c6 {[%emt 0:00:00]} 4. e3 {[%emt 0:01:45]} Bf5 {[%emt 0:00:00]} 5. Ngf3 {[%emt 0:01:50]} Nbd7 {[%emt 0:00:00]} 6. c4 {[%emt 1:29:25]} e6 7. Qb3 {[%emt 0:00:00]} Qb6 {[%emt 0:00:00]} 8. c5 {[%emt 0:00:00]} Qc7 {[%emt 0:00:00]} 9. Bf4 {[%emt 0:00:00]} Qc8 {[%emt 0:00:00]} 10. h3 {[%emt 0:00:00]} h6 {[%emt 0:00:00]} 11. Be2 {[%emt 0:00:00]} Be7 {[%emt 0:00:00]} 12. O-O {[%emt 0:00:00]} O-O {[%emt 0:00:00]} 13. Qc3 {[%emt 0:00:00]} Bd8 {[%emt 0:05:30]} 14. b4 {[%emt 0:00:00]} Bc7 {[%emt 0:00:00]} 15. Bxc7 {[%emt 0:00:00]} Qxc7 {[%emt 0:00:00]} 16. a4 {[%emt 0:00:00]} Ne4 {[%emt 0:00:00]} 17. Nxe4 {[%emt 0:00:00]} Bxe4 {[%emt 0:00:00]} 18. Nd2 {[%emt 0:00:00]} Bh7 {[%emt 0:00:00]} 19. b5 {[%emt 0:00:00]} e5 {[%emt 0:00:00]} 20. a5 {[%emt 0:00:00]} a6 {[%emt 0:00:00]} 21. b6 {[%emt 0:00:00]} Qd8 {[%emt 0:00:00]} 22. dxe5 {[%emt 0:00:00]} Qe7 {[%emt 0:00:00]} 23. Nb3 {[%emt 0:00:00]} Nxe5 {[%emt 0:00:00]} 24. Rac1 {[%emt 0:00:00]} Ng6 {[%emt 0:00:00]} 25. Nd4 {[%emt 0:00:00]} 1/2-1/2

[Event "13th SRB-ch Men 2019"]
[Site "Beograd"]
[Date "2019.04.14"]
[Round "9.3"]
[White "Kovacevic, Aleksandar"]
[Black "Savic, Miodrag R"]
[Result "1/2-1/2"]
[ECO "D02"]
[WhiteElo "2503"]
[BlackElo "2498"]
[Annotator "RC"]
[PlyCount "20"]
[EventDate "2019.04.06"]
[EventType "tourn"]
[EventCountry "SRB"]
[SourceTitle "playchess.com"]
[Source "ChessBase"]
[SourceQuality "1"]
[TimeControl "40/5400+30:1800+30"]

1. d4 {[%emt 0:00:00]} d5 {[%emt 0:00:00]} 2. Bf4 {[%emt 0:00:00]} Nf6 {[%emt 0:00:40]} 3. e3 {[%emt 0:00:00]} g6 {[%emt 0:00:40]} 4. Be2 {[%emt 0:00:25]} Bg7 {[%emt 0:00:08]} 5. Nf3 {[%emt 0:00:05]} O-O {[%emt 0:00:12]} 6. Nbd2 {[%emt 0:00:07]} c6 {[%emt 0:00:25]} 7. Ne5 {[%emt 0:00:10]} Nbd7 {[%emt 0:00:22]} 8. c3 {[%emt 0:00:10]} Nxe5 {[%emt 0:00:21]} 9. Bxe5 {[%emt 0:00:05]} Ne8 {[%emt 0:00:35]} 10. Bxg7 {[%emt 0:00:09]} Nxg7 {[%emt 0:00:10]} 1/2-1/2

[Event "13th SRB-ch Men 2019"]
[Site "Beograd"]
[Date "2019.04.14"]
[Round "9.4"]
[White "Nestorovic, Nikola"]
[Black "Markovic, Miroslav"]
[Result "0-1"]
[ECO "C42"]
[WhiteElo "2473"]
[BlackElo "2384"]
[Annotator "RC"]
[PlyCount "114"]
[EventDate "2019.04.06"]
[EventType "tourn"]
[EventCountry "SRB"]
[SourceTitle "playchess.com"]
[Source "ChessBase"]
[SourceQuality "1"]
[TimeControl "40/5400+30:1800+30"]

1. e4 {[%emt 0:00:00]} e5 {[%emt 0:00:00]} 2. Nf3 {[%emt 0:00:00]} Nf6 {[%emt 0:00:00]} 3. Nxe5 {[%emt 0:00:00]} d6 {[%emt 0:00:00]} 4. Nf3 {[%emt 0:00:00]} Nxe4 {[%emt 0:00:04]} 5. c4 {[%emt 0:03:14]} Be7 {[%emt 0:02:39]} 6. d4 {[%emt 0:03:13]} O-O {[%emt 0:01:31]} 7. Bd3 {[%emt 0:00:08]} d5 {[%emt 0:02:06]} 8. O-O {[%emt 1:27:25]} c6 {[%emt 0:02:17]} 9. h3 {[%emt 0:00:00]} Nd7 {[%emt 0:01:34]} 10. Qc2 {[%emt 0:00:00]} Ndf6 {[%emt 0:06:18]} 11. Re1 {[%emt 0:00:00]} Bf5 {[%emt 0:06:03]} 12. c5 {[%emt 0:00:00]} h6 {[%emt 0:02:00]} 13. Ne5 {[%emt 0:00:00]} Bh7 {[%emt 0:00:58]} 14. Nc3 {[%emt 0:00:00]} Ng5 {[%emt 0:17:18]} 15. Bxh7+ {[%emt 0:00:00]} Nfxh7 {[%emt 0:00:19]} 16. b4 {[%emt 0:00:00]} Bf6 {[%emt 0:01:27]} 17. f4 {[%emt 0:00:00]} Ne6 {[%emt 0:00:15]} 18. Qd3 {[%emt 0:00:00]} Bxe5 {[%emt 0:01:03]} 19. fxe5 {[%emt 0:00:00]} b6 {[%emt 0:04:17]} 20. Be3 {[%emt 0:00:00]} a5 {[%emt 0:00:40]} 21. a3 {[%emt 0:00:00]} axb4 {[%emt 0:00:09]} 22. axb4 {[%emt 0:00:00]} bxc5 {[%emt 0:00:07]} 23. bxc5 {[%emt 0:00:00]} Qh4 {[%emt 0:02:17]} 24. Bf2 {[%emt 0:00:00]} Qg5 {[%emt 0:00:46]} 25. Be3 {[%emt 0:00:00]} Qh4 {[%emt 0:00:58]} 26. Bf2 {[%emt 0:00:00]} Qg5 {[%emt 0:00:22]} 27. Be3 {[%emt 0:00:00]} Qg3 {[%emt 0:01:58]} 28. Ne2 {[%emt 0:00:00]} Qh4 {[%emt 0:00:05]} 29. Bf2 {[%emt 0:00:00]} Qg5 {[%emt 0:02:16]} 30. Ra6 {[%emt 0:00:00]} Rfc8 {[%emt 0:00:52]} 31. Rea1 {[%emt 0:00:00]} Rxa6 {[%emt 0:00:34]} 32. Qxa6 {[%emt 0:00:00]} Qd8 {[%emt 0:02:16]} 33. Ng3 {[%emt 0:01:21]} g6 {[%emt 0:00:30]} 34. Nf1 {[%emt 0:03:38]} Nhg5 {[%emt 0:00:48]} 35. Nh2 {[%emt 0:05:32]} h5 {[%emt 0:01:13]} 36. Be3 {[%emt 0:00:08]} Ne4 {[%emt 0:02:39]} 37. Nf3 {[%emt 0:00:08]} Kg7 {[%emt 0:39:51]} 38. h4 {[%emt 0:00:40]} Rc7 {[%emt 0:00:00]} 39. Rf1 {[%emt 0:03:23]} Qb8 {[%emt 0:00:00]} 40. Ng5 {[%emt 0:00:00]} N4xg5 {[%emt 0:00:00]} 41. Bxg5 {[%emt 0:01:52]} Nxd4 {[%emt 0:00:00]} 42. Bf6+ {[%emt 0:00:30]} Kh7 {[%emt 0:00:00]} 43. Qd3 {[%emt 0:00:30]} Ne6 {[%emt 0:00:00]} 44. g4 {[%emt 0:00:30]} Qb4 {[%emt 0:00:00]} 45. gxh5 {[%emt 0:00:30]} Qg4+ {[%emt 0:00:00]} 46. Kh1 {[%emt 0:00:30]} Qxh5 {[%emt 0:00:00]} 47. Qa6 {[%emt 0:22:18]} g5 {[%emt 0:00:00]} 48. Rf2 {[%emt 0:00:41]} Qd1+ {[%emt 0:00:00]} 49. Rf1 {[%emt 0:03:34]} Ra7 {[%emt 0:00:00]} 50. Rxd1 {[%emt 0:01:34]} Rxa6 {[%emt 0:00:00]} 51. hxg5 {[%emt 0:01:07]} Nxc5 {[%emt 0:00:00]} 52. Kg2 {[%emt 0:00:30]} Kg6 {[%emt 0:00:00]} 53. Rh1 {[%emt 0:00:30]} Ne6 {[%emt 0:00:00]} 54. Rh8 {[%emt 0:00:30]} c5 {[%emt 0:00:00]} 55. Rc8 {[%emt 0:00:30]} c4 {[%emt 0:00:00]} 56. Kf3 {[%emt 0:00:30]} Kf5 {[%emt 0:00:00]} 57. g6 {[%emt 0:00:30]} Ra3+ {[%emt 0:00:00]} 0-1